[Event "Mitropa Cup Women 2024"]
[Site "Apolda"]
[Date "2024.02.17"]
[Round "3.1"]
[White "Heinemann, Josefine"]
[Black "Hakimifard, Ghazal"]
[Result "1/2-1/2"]
[ECO "B42"]
[WhiteElo "2361"]
[BlackElo "2243"]
[Annotator "TA"]
[PlyCount "50"]
[EventDate "2024.02.15"]
[EventType "team-tourn"]
[EventCountry "GER"]
[SourceTitle "playchess.com"]
[Source "ChessBase"]
[SourceQuality "1"]
[WhiteTeam "Germany"]
[BlackTeam "Switzerland"]
[WhiteTeamCountry "GER"]
[BlackTeamCountry "SUI"]
[TimeControl "40/5400+30:1800+30"]

{[%evp 18,50,62,68,90,95,102,116,188,178,202,137,127,137,122,60,71,74,74,0,0,0,0,0,0,0,0,0,0,0,0,0,0,0,0]} 1. e4 {[%emt 0:00:03]} c5 {[%emt 0:00:10]} 2. Nf3 {[%emt 0:00:08][%cal Bg1f3,Bf3d4,Bd4b3][%mdl 32]} e6 {[%emt 0:00:06]} 3. d4 {[%emt 0:00:14]} cxd4 {[%emt 0:00:05]} 4. Nxd4 {[%emt 0:00:04]} a6 {[%emt 0:00:05]} 5. Bd3 {[%emt 0:00:27]} Bc5 {[%emt 0:00:19]} 6. Nb3 {[%emt 0:00:07]} Ba7 {[%emt 0:00:04]} 7. O-O {[%emt 0:00:33]} Nc6 {[%emt 0:00:38]} 8. Qg4 {[%emt 0:00:47]} Nf6 {[%emt 0:03:18]} 9. Qxg7 {[%emt 0:01:06]} Rg8 {[%emt 0:00:09]} 10. Qh6 {[%emt 0:00:05] White is more active.} Rg6 {[%emt 0:14:35]} 11. Qh4 {[%emt 0:00:35][%cal Oe4e5]} Ne5 {[%emt 0:00:42]} 12. Be2 {[%emt 0:01:58] Prevents Nf3+} Qc7 {[%emt 0:05:43]} (12... d6 $16) 13. Nc3 $18 {[%emt 0:08:01]} Neg4 {[%emt 0:19:53]} 14. Bxg4 {[%emt 0:13:19]} Nxg4 {[%emt 0:00:12]} 15. Qxh7 {[%emt 0:04:20]} Qe5 {[%emt 0:05:27] Prevents Be3.} 16. g3 {[%emt 0:08:03]} ({Better is} 16. Nd2 $1 $16) 16... b5 $14 {[%emt 0:13:19]} 17. Bf4 {[%emt 0:10:02]} Qf6 {[%emt 0:00:58] [#]} 18. e5 {[%emt 0:08:33]} Nxe5 $11 {[%emt 0:14:59] The position is equal.} 19. Bxe5 {[%emt 0:04:02]} Qxe5 {[%emt 0:00:11]} 20. Rae1 {[%emt 0:00:38]} Rxg3+ {[%emt 0:04:50]} 21. hxg3 {[%emt 0:00:26]} Qxg3+ {[%emt 0:00:01]} 22. Kh1 {[%emt 0:00:09] White wants to mate with Qh8+.} Qf3+ {[%emt 0:01:58]} 23. Kg1 {[%emt 0:01:38]} Qg3+ {[%emt 0:00:54]} 24. Kh1 {[%emt 0:00:04] Qh8+ would kill now.} Qf3+ {[%emt 0:00:54]} 25. Kg1 {[%emt 0:00:04]} Qg3+ {[%emt 0:00:26] Weighted Error Value: White=0.25 (precise) /Black=0.11 (very precise) .  Mistake:       	White=2     	Black=1      Inaccurate:     	White=1     	---        OK:         	White=7     	Black=7      Best:        	White=1     	Black=1} 1/2-1/2

[Event "Mitropa Cup Women 2024"]
[Site "Apolda"]
[Date "2024.02.17"]
[Round "3.2"]
[White "Georgescu, Lena"]
[Black "Schneider, Jana"]
[Result "1/2-1/2"]
[ECO "C88"]
[WhiteElo "2268"]
[BlackElo "2331"]
[Annotator "TA"]
[PlyCount "51"]
[EventDate "2024.02.15"]
[EventType "team-tourn"]
[EventCountry "GER"]
[SourceTitle "playchess.com"]
[Source "ChessBase"]
[SourceQuality "1"]
[WhiteTeam "Switzerland"]
[BlackTeam "Germany"]
[WhiteTeamCountry "SUI"]
[BlackTeamCountry "GER"]
[TimeControl "40/5400+30:1800+30"]

{[%evp 23,51,20,25,19,31,33,16,20,11,17,29,25,29,22,26,26,12,7,7,9,0,13,21,16,11,0,0,0,19,0]} 1. e4 {[%emt 0:00:04]} e5 {[%emt 0:00:06]} 2. Nf3 {[%emt 0:00:06]} Nc6 {[%emt 0:00:06]} 3. Bb5 {[%emt 0:00:03][%cal Bf1b5,Bb5a4,Ba4b3,Bb3a2][%mdl 32]} a6 {[%emt 0:00:07]} 4. Ba4 {[%emt 0:00:03]} Nf6 {[%emt 0:00:08]} 5. O-O {[%emt 0:00:06]} Be7 {[%emt 0:00:08]} 6. Re1 {[%emt 0:00:03]} b5 {[%emt 0:00:17]} 7. Bb3 {[%emt 0:00:03]} O-O {[%emt 0:00:08]} 8. a4 {[%emt 0:00:03]} b4 {[%emt 0:00:06]} 9. d3 {[%emt 0:00:07]} d6 {[%emt 0:00:26]} 10. c3 {[%emt 0:00:28]} Rb8 {[%emt 0:05:07]} 11. Nbd2 {[%emt 0:00:29][%cal Bb1d2,Bd2c4,Bc4a5,Ba5c4][%mdl 32]} Na5 {[%emt 0:00:46]} 12. Ba2 {[%emt 0:00:10]} c5 {[%emt 0:04:45]} 13. d4 {[%emt 0:00:37]} Qc7 {[%emt 0:01:06]} 14. dxe5 {[%emt 0:00:17]} dxe5 {[%emt 0:00:07]} 15. Nc4 {[%emt 0:01:27] aiming for Nxa5.} b3 {[%emt 0:00:24]} 16. Nxa5 {[%emt 0:00:54]} bxa2 {[%emt 0:00:07]} 17. Nc4 {[%emt 0:00:12]} Be6 {[%emt 0:05:11]} 18. Qe2 {[%emt 0:01:50]} Nd7 {[%emt 0:21:29]} 19. Rxa2 {[%emt 0:03:24]} Nb6 {[%emt 0:01:38]} 20. Nfxe5 {[%emt 0:01:04] The position is equal.} (20. Nfd2 {simplifies} a5 21. Ra3 Nxc4 22. Nxc4 Rfd8 23. b3) 20... Bd6 $1 {[%emt 0:00:37][%cal Be7d6,Bd6h2,Bh2f4][%mdl 32]} 21. a5 $1 {[%emt 0:01:02]} Nxc4 {[%emt 0:01:00]} 22. Nxc4 {[%emt 0:00:12]} Bxh2+ {[%emt 0:00:09]} 23. Kh1 {[%emt 0:00:36]} Bf4 {[%emt 0:00:35]} 24. Kg1 {[%emt 0:07:56]} Bh2+ {[%emt 0:00:51] A strong pair of Bishops.} 25. Kh1 {[%emt 0:00:03]} Bf4 {[%emt 0:00:06]} 26. Kg1 {[%emt 0:00:03] Not much happened in this game.   Weighted Error Value: White=0.02 (flawless) /Black=0.01 (flawless) .  OK:         	White=6     	Black=8      Best:        	White=2     	Black=1      Strong:       	White=1     	Black=1} 1/2-1/2

[Event "Mitropa Cup Women 2024"]
[Site "Apolda"]
[Date "2024.02.17"]
[Round "3.3"]
[White "Klek, Hanna Marie"]
[Black "Hryzlova, Sofiia"]
[Result "1/2-1/2"]
[ECO "C02"]
[WhiteElo "2284"]
[BlackElo "2196"]
[Annotator "TA"]
[PlyCount "88"]
[EventDate "2024.02.15"]
[EventType "team-tourn"]
[EventCountry "GER"]
[SourceTitle "playchess.com"]
[Source "ChessBase"]
[SourceQuality "1"]
[WhiteTeam "Germany"]
[BlackTeam "Switzerland"]
[WhiteTeamCountry "GER"]
[BlackTeamCountry "SUI"]
[TimeControl "40/5400+30:1800+30"]

{[%evp 11,88,0,0,-14,-16,-48,-19,-31,-27,-64,-31,-22,-46,-41,-13,0,0,0,6,0,0,0,0,-16,13,5,16,0,8,50,50,-107,-129,-108,-43,-144,-138,-160,-145,-159,-144,-178,0,-32,-4,-12,0,0,16,14,7,8,8,10,50,29,8,0,0,-181,0,0,0,0,0,0,0,0,0,0,0,0,0,0,0,0,0,0,0]} 1. e4 {[%emt 0:00:03]} e6 {[%emt 0:00:10]} 2. d4 {[%emt 0:00:07]} d5 {[%emt 0:00:07]} 3. e5 {[%emt 0:00:04]} c5 {[%emt 0:00:05]} 4. c3 {[%emt 0:00:06]} Nc6 {[%emt 0:00:06]} 5. Nf3 {[%emt 0:00:07]} Qb6 {[%emt 0:00:06]} 6. Bd3 {[%emt 0:00:42]} cxd4 {[%emt 0:00:18]} 7. O-O {[%emt 0:00:15]} Bd7 {[%emt 0:00:25]} 8. Re1 {[%emt 0:00:16]} Nge7 {[%emt 0:00:31]} 9. h4 {[%emt 0:00:15]} a6 {[%emt 0:00:32]} 10. h5 {[%emt 0:04:09]} g6 {[%emt 0:00:12]} 11. Nbd2 {[%emt 0:04:46][%cal Bb1d2,Bd2f1,Bf1g3][%mdl 32]} gxh5 {[%emt 0:00:29][%cal Oh5h4]} 12. Nf1 {[%emt 0:03:53]} Ng6 {[%emt 0:00:44]} 13. Ng3 {[%emt 0:02:35]} O-O-O {[%emt 0:01:01] ...dxc3 would now be deadly.} 14. Nxh5 {[%emt 0:01:52]} Kb8 {[%emt 0:04:26]} 15. Rb1 {[%emt 0:04:06]} Be7 {[%emt 0:12:10]} 16. Bh6 {[%emt 0:13:09]} Rhg8 {[%emt 0:06:03]} 17. Qe2 {[%emt 0:04:34]} Nh4 {[%emt 0:16:31]} 18. Nxh4 {[%emt 0:01:58]} Bxh4 {[%emt 0:00:10]} 19. Bg7 {[%emt 0:02:52]} Bg5 {[%emt 0:16:37]} 20. Qf3 {[%emt 0:07:34]} Qc7 {[%emt 0:16:16][%cal Og8g7]} 21. Bxh7 $2 {[%emt 0:13:25] [#]} (21. Qxf7 $14 Bd2 22. Re2 (22. Bxh7 Rxg7 23. Nxg7 dxc3 $11)) 21... Rxg7 $1 $17 {[%emt 0:05:58][%mdl 512]} 22. Nxg7 {[%emt 0:00:07]} Bd2 {[%emt 0:00:30]} (22... Nxe5 23. Qh5 (23. Qg3 Bf6 $15) 23... Bf6 24. cxd4 $16) ({Better is} 22... Rh8 $17 23. Qxf7 Nxe5 (23... dxc3 24. bxc3 Nd8 25. Qg6 $15) 24. Nxe6 (24. Qh5 $2 Bf6 $19) 24... Nxf7 25. Nxc7 Kxc7) 23. cxd4 {[%emt 0:07:12]} (23. Qxf7 $1 $15 dxc3 (23... Nxe5 24. Qh5 $11) 24. bxc3 Bxc3 25. Rec1 Bxe5 (25... Qxe5 $2 26. Nxe6 Qxe6 27. Qxe6 $18) 26. Bd3 (26. Nxe6 $2 Bxe6 27. Qxc7+ Kxc7 $19)) 23... Nxd4 {[%emt 0:04:13]} 24. Qxf7 {[%emt 0:02:38]} Bxe1 {[%emt 0:01:08]} 25. Rxe1 {[%emt 0:00:07]} Qa5 {[%emt 0:00:35]} 26. Rd1 {[%emt 0:03:36]} Qb4 {[%emt 0:06:55]} (26... Ne2+ $19 27. Kf1 Qa4) 27. Bd3 {[%emt 0:01:23]} Qxb2 {[%emt 0:01:51] Black wants to play ...Ne2+.} (27... Qa4 $5 28. Rc1 Qxa2 $11) 28. Qe7 {[%emt 0:06:15]} Nc6 {[%emt 0:00:48]} 29. Qd6+ {[%emt 0:00:20]} Ka8 {[%emt 0:00:09] [#] ...Bc8 is the strong threat.} 30. Nxe6 {[%emt 0:00:49]} Bxe6 {[%emt 0:02:37]} 31. Qxe6 {[%emt 0:00:07]} Rf8 $132 {[%emt 0:00:13][%mdl 2048] Black is not keeping still} 32. Rf1 {[%emt 0:06:15]} (32. Qxd5 $2 {gets mated.} Qxf2+ 33. Kh2 Rh8+) ({Not} 32. Bf5 $2 Nd4 (32... Qxa2 33. Rb1 $14) 33. Rxd4 Qa1+ (33... Qxd4 34. g3 $17) 34. Kh2 Qxd4 $19) 32... Qxa2 {[%emt 0:02:40]} 33. Qh6 {[%emt 0:02:58]} Re8 {[%emt 0:00:37]} 34. f4 {[%emt 0:01:06]} Qa3 {[%emt 0:00:22]} 35. Rf3 {[%emt 0:02:36]} (35. Qh3 $11 {and White is okay.}) 35... Nd4 $2 {[%emt 0:00:54]} (35... Qc1+ $19 36. Kh2 Nxe5) 36. Rh3 $11 {[%emt 0:00:11] The position is equal.} Qc1+ {[%emt 0:00:58]} 37. Kh2 {[%emt 0:00:06]} Rg8 {[%emt 0:00:53]} 38. Rg3 {[%emt 0:02:38]} Rxg3 {[%emt 0:00:28]} 39. Kxg3 {[%emt 0:00:07][%mdl 4096] Endgame. KQB-KQN} Qe3+ {[%emt 0:00:31]} 40. Kg4 $1 {[%emt 0:01:26]} Qxd3 {[%emt 0:00:32]} 41. Qf8+ {[%emt 0:30:10]} Ka7 {[%emt 0:30:15]} 42. Qc5+ {[%emt 0:00:06]} Ka8 {[%emt 0:00:06]} 43. Qc8+ {[%emt 0:00:08]} Ka7 {[%emt 0:00:05]} 44. Qc5+ {[%emt 0:00:04]} Ka8 {[%emt 0:02:13] Weighted Error Value: White=0.24 (precise) /Black=0.21 (precise) .  Loses game:     	White=1     	---        Missed win:     	---       	Black=2      Mistake:       	White=2     	Black=1      Inaccurate:     	White=3     	Black=6      OK:         	White=7     	Black=16     Best:        	White=7     	---        Strong:       	White=1     	---        Brilliant:      	---       	Black=1} 1/2-1/2

[Event "Mitropa Cup Women 2024"]
[Site "Apolda"]
[Date "2024.02.17"]
[Round "3.4"]
[White "Manko, Mariia"]
[Black "Schulze, Lara"]
[Result "1/2-1/2"]
[ECO "E11"]
[WhiteElo "2128"]
[BlackElo "2285"]
[Annotator "TA"]
[PlyCount "69"]
[EventDate "2024.02.15"]
[EventType "team-tourn"]
[EventCountry "GER"]
[SourceTitle "playchess.com"]
[Source "ChessBase"]
[SourceQuality "1"]
[WhiteTeam "Switzerland"]
[BlackTeam "Germany"]
[WhiteTeamCountry "SUI"]
[BlackTeamCountry "GER"]
[TimeControl "40/5400+30:1800+30"]

{[%evp 12,69,8,12,28,20,42,53,49,9,18,9,22,0,0,0,0,0,12,-14,0,0,0,0,0,-3,-7,-35,-25,-19,11,10,25,0,0,0,0,-19,-18,-12,-9,-9,-10,-17,0,-25,-33,-35,-25,-69,0,0,0,0,0,0,0,0,0,0]} 1. d4 {[%emt 0:00:08]} Nf6 {[%emt 0:00:09]} 2. c4 {[%emt 0:00:06]} e6 {[%emt 0:00:06]} 3. g3 {[%emt 0:00:06]} d5 {[%emt 0:00:18]} 4. Bg2 {[%emt 0:00:07]} Bb4+ {[%emt 0:00:17]} 5. Bd2 {[%emt 0:00:08]} a5 {[%emt 0:00:10]} 6. Nf3 {[%emt 0:00:37]} O-O {[%emt 0:00:15]} 7. Qc2 {[%emt 0:00:12]} c5 {[%emt 0:00:31]} 8. cxd5 {[%emt 0:13:35]} cxd4 {[%emt 0:00:55]} 9. Nxd4 {[%emt 0:08:34]} Qb6 {[%emt 0:00:21] White is slightly better.} 10. Nf3 {[%emt 0:01:36]} exd5 {[%emt 0:03:35]} 11. O-O {[%emt 0:02:29]} Nc6 {[%emt 0:02:10]} 12. Bxb4 {[%emt 0:09:13]} axb4 {[%emt 0:02:27]} 13. Nbd2 {[%emt 0:01:16]} Bg4 {[%emt 0:06:29]} 14. a3 {[%emt 0:07:01]} Rfe8 {[%emt 0:13:17]} 15. Nb3 {[%emt 0:06:35]} bxa3 {[%emt 0:13:58]} 16. bxa3 {[%emt 0:01:28]} Rac8 {[%emt 0:04:15]} 17. Qd3 {[%emt 0:11:55]} Bxf3 {[%emt 0:08:43]} 18. Bxf3 {[%emt 0:01:39][%cal Of1d1]} Ne5 {[%emt 0:01:33]} 19. Qd1 {[%emt 0:00:52]} Nxf3+ {[%emt 0:04:50]} 20. exf3 {[%emt 0:00:09]} Rc3 {[%emt 0:00:39]} (20... d4 $5) 21. Nd4 {[%emt 0:05:52]} Qa6 {[%emt 0:03:08][%cal Oc3d3] [#] ...Rd3! is the strong threat.} 22. Re1 {[%emt 0:05:29]} Rxe1+ {[%emt 0:08:48]} 23. Qxe1 {[%emt 0:00:06]} Rxa3 {[%emt 0:01:54]} 24. Rxa3 {[%emt 0:05:42]} Qxa3 $11 {[%emt 0:00:17][%mdl 4096] Endgame. KQN-KQN} 25. Qe5 {[%emt 0:00:18]} h6 {[%emt 0:02:58]} 26. Kg2 {[%emt 0:00:27]} Qa4 {[%emt 0:12:19]} 27. Nf5 {[%emt 0:01:12]} Qe8 {[%emt 0:03:55]} 28. Qc7 {[%emt 0:09:25]} Qd7 {[%emt 0:02:33]} 29. Qb8+ {[%emt 0:00:40]} Kh7 {[%emt 0:01:01]} 30. g4 {[%emt 0:01:04]} d4 {[%emt 0:00:35]} ({Black should try} 30... g6 $1 $15 31. Nd4 Ne8 (31... Nxg4 32. Qf4 $14)) 31. Qf8 {[%emt 0:00:35] The position is equal.} Ne8 {[%emt 0:02:29]} (31... Nh5 $5 32. Ne7 Nf6 $11 (32... Nf4+ $2 33. Kh1 $18)) 32. Ne7 {[%emt 0:00:33]} Nf6 {[%emt 0:00:31] Repels Qg8+} 33. Nf5 {[%emt 0:00:12]} Ne8 {[%emt 0:00:21]} 34. Ne7 {[%emt 0:00:05]} Nf6 {[%emt 0:00:29] Wards off Qg8+} 35. Nf5 {[%emt 0:00:10] Weighted Error Value: White=0.10 (very precise) /Black=0.08 (flawless) .  Mistake:       	---       	Black=1      Inaccurate:     	White=4     	Black=1      OK:         	White=10    	Black=13     Best:        	White=1     	---} 1/2-1/2

[Event "Mitropa Cup Women 2024"]
[Site "Apolda"]
[Date "2024.02.17"]
[Round "3.5"]
[White "Cvitan, Ena"]
[Black "Terbe, Julianna"]
[Result "1/2-1/2"]
[ECO "B07"]
[WhiteElo "2242"]
[BlackElo "2315"]
[Annotator "TA"]
[PlyCount "83"]
[EventDate "2024.02.15"]
[EventType "team-tourn"]
[EventCountry "GER"]
[SourceTitle "playchess.com"]
[Source "ChessBase"]
[SourceQuality "1"]
[WhiteTeam "Croatia"]
[BlackTeam "Hungary"]
[WhiteTeamCountry "CRO"]
[BlackTeamCountry "HUN"]
[TimeControl "40/5400+30:1800+30"]

{[%evp 14,83,35,8,29,27,27,26,25,22,19,37,26,10,28,14,24,10,22,20,50,7,17,10,47,-17,25,24,31,22,26,28,55,0,0,-156,-158,-165,-164,-165,-131,-133,-57,-55,-56,-55,-56,-56,-56,-52,-57,-46,-45,-54,0,0,0,0,0,0,0,0,0,0,0,0,0,0,0,0,0,0]} 1. d4 {[%emt 0:00:14]} g6 {[%emt 0:00:09]} 2. e4 {[%emt 0:01:31]} Bg7 {[%emt 0:00:06]} 3. c3 {[%emt 0:00:51]} d6 {[%emt 0:00:38]} 4. Bd3 {[%emt 0:00:50]} e5 {[%emt 0:03:48]} 5. Nf3 {[%emt 0:02:37]} Nd7 {[%emt 0:02:37]} 6. O-O {[%emt 0:00:35]} Ngf6 {[%emt 0:00:09]} 7. Re1 {[%emt 0:02:17]} O-O {[%emt 0:00:07]} 8. Nbd2 {[%emt 0:00:39]} h6 {[%emt 0:02:51]} 9. a4 {[%emt 0:02:59]} a5 {[%emt 0:01:09]} 10. Nc4 {[%emt 0:05:31]} exd4 {[%emt 0:08:44] White has an edge.} 11. cxd4 {[%emt 0:07:19]} d5 {[%emt 0:00:27]} 12. exd5 {[%emt 0:05:04]} Nxd5 {[%emt 0:00:05]} 13. Bd2 {[%emt 0:06:14]} c5 {[%emt 0:12:54]} 14. Bc3 {[%emt 0:11:59]} cxd4 {[%emt 0:04:23]} 15. Bxd4 {[%emt 0:02:45]} Bxd4 {[%emt 0:00:06]} 16. Nxd4 {[%emt 0:00:07][%cal Od3g6] [#] Bxg6! is the strong threat.} Nc5 {[%emt 0:00:07][%cal Oc8g4]} 17. Bf1 {[%emt 0:08:03]} Nf4 {[%emt 0:12:12]} 18. Ne5 {[%emt 0:09:45]} Qg5 {[%emt 0:09:16] White must now prevent ...Nh3+.} (18... Qf6 {simplifies} 19. Qc1 Ncd3 20. Nxd3 Nxd3 21. Bxd3 Qxd4 22. Rd1 Qg7) 19. Ra3 {[%emt 0:00:51]} (19. Qc2 $14 b6 20. g3) 19... Rd8 {[%emt 0:12:55]} (19... Nh3+ $5 20. Rxh3 Bxh3 $15) 20. Rg3 {[%emt 0:06:35]} (20. Qc2 {with more complications.} Rxd4 21. Qxc5 Rd5 22. Qc7) 20... Qf6 {[%emt 0:00:34]} 21. Qc1 {[%emt 0:01:42][%cal Og3f3] Hoping for Rf3!} Rxd4 {[%emt 0:06:52]} 22. Qxc5 {[%emt 0:00:41]} Rd5 {[%emt 0:09:18]} 23. Qc3 {[%emt 0:03:42]} ({White should play} 23. Qe3 $14 Be6 24. h3) 23... Be6 $11 {[%emt 0:00:47]} 24. Nxg6 $2 {[%emt 0:01:47]} Qxc3 $17 {[%emt 0:00:21]} 25. Nxf4+ {[%emt 0:01:32] [#]} Qxg3 $3 {[%emt 0:00:05]} 26. hxg3 {[%emt 0:00:12]} Rd6 {[%emt 0:00:48]} 27. Nxe6 {[%emt 0:01:26]} fxe6 {[%emt 0:00:05][%mdl 4096] Endgame. KRR-KRB} (27... Rxe6 $17 28. Rxe6 fxe6) 28. Bc4 $15 {[%emt 0:01:09][%cal Ob2b3]} Kf7 {[%emt 0:00:08]} 29. f4 {[%emt 0:00:30]} Rc8 {[%emt 0:02:55]} 30. b3 {[%emt 0:00:38]} Rc5 {[%emt 0:00:11]} 31. g4 {[%emt 0:01:06]} Kf6 {[%emt 0:00:11]} 32. Kf2 {[%emt 0:00:37]} e5 {[%emt 0:00:54]} 33. Rh1 {[%emt 0:00:34]} Rd2+ {[%emt 0:06:02]} (33... exf4 34. Rxh6+ Ke5 35. Rh5+ Kd4 36. Rh1 $17) ({Better is} 33... Kg7 $15 34. g3 Rd2+ 35. Ke3 Rd8) 34. Ke3 $11 {[%emt 0:01:40] The position is equal.} Rxg2 {[%emt 0:00:06]} 35. Kf3 {[%emt 0:01:41] Inhibits Rg3+.} Rd2 {[%emt 0:02:07]} 36. Rxh6+ {[%emt 0:00:16]} Kg7 {[%emt 0:00:36]} 37. Rb6 {[%emt 0:07:58]} exf4 {[%emt 0:00:09]} 38. Rxb7+ {[%emt 0:00:14]} Kg6 {[%emt 0:00:51]} 39. Kxf4 {[%emt 0:00:42]} Rd4+ {[%emt 0:00:13]} 40. Kf3 {[%emt 0:00:21]} Rdxc4 {[%emt 0:01:03]} 41. bxc4 {[%emt 0:30:11]} Rxc4 {[%emt 0:30:03]} 42. Rb6+ {[%emt 0:00:21] Weighted Error Value: White=0.19 (very precise) /Black=0.10 (very precise) .  Mistake:       	White=3     	Black=2      Inaccurate:     	White=1     	Black=3      OK:         	White=19    	Black=12     Best:        	---       	Black=4      Brilliant:      	---       	Black=1} 1/2-1/2

[Event "Mitropa Cup Women 2024"]
[Site "Apolda"]
[Date "2024.02.17"]
[Round "3.6"]
[White "Demeter, Dorina"]
[Black "Medic, Mirjana"]
[Result "1-0"]
[ECO "D37"]
[WhiteElo "2271"]
[BlackElo "2151"]
[Annotator "RC"]
[PlyCount "77"]
[EventDate "2024.02.15"]
[EventType "team-tourn"]
[EventCountry "GER"]
[SourceTitle "playchess.com"]
[Source "ChessBase"]
[SourceQuality "1"]
[WhiteTeam "Hungary"]
[BlackTeam "Croatia"]
[WhiteTeamCountry "HUN"]
[BlackTeamCountry "CRO"]
[TimeControl "40/5400+30:1800+30"]

1. Nf3 {[%emt 0:00:04]} d5 {[%emt 0:00:13]} 2. d4 {[%emt 0:00:15]} Nf6 {[%emt 0:00:22]} 3. c4 {[%emt 0:00:29]} e6 {[%emt 0:00:08]} 4. Nc3 {[%emt 0:00:13]} Be7 {[%emt 0:00:48]} 5. Bf4 {[%emt 0:00:10]} c6 {[%emt 0:02:13]} 6. e3 {[%emt 0:00:55]} Nbd7 {[%emt 0:01:09]} 7. h3 {[%emt 0:02:19]} O-O {[%emt 0:01:56]} 8. Qc2 {[%emt 0:03:05]} b6 {[%emt 0:09:51]} 9. cxd5 {[%emt 0:07:02]} exd5 {[%emt 0:00:26]} 10. Bd3 {[%emt 0:01:10]} Bb7 {[%emt 0:00:26]} 11. O-O {[%emt 0:02:08]} Rc8 {[%emt 0:02:26]} 12. Ne5 {[%emt 0:03:28]} Re8 {[%emt 0:01:45]} 13. Nxd7 {[%emt 0:01:24]} Nxd7 {[%emt 0:01:17]} 14. Bxh7+ {[%emt 0:00:10]} Kh8 {[%emt 0:02:17]} 15. Bf5 {[%emt 0:05:28]} Ra8 {[%emt 0:03:08]} 16. Rac1 {[%emt 0:10:36]} Bf6 {[%emt 0:12:42]} 17. Rfd1 {[%emt 0:15:34]} Nf8 {[%emt 0:10:12]} 18. e4 {[%emt 0:03:44]} g6 {[%emt 0:01:04]} 19. Bg4 {[%emt 0:01:20]} Ne6 {[%emt 0:03:44]} 20. Bxe6 {[%emt 0:03:11]} Rxe6 {[%emt 0:00:22]} 21. e5 {[%emt 0:00:44]} Bg7 {[%emt 0:00:30]} 22. Qd2 {[%emt 0:02:05]} Kg8 {[%emt 0:01:48]} 23. Bh6 {[%emt 0:06:05]} Qh4 {[%emt 0:02:02]} 24. Bg5 {[%emt 0:01:38]} Qh5 {[%emt 0:01:48]} 25. Ne2 {[%emt 0:03:06]} Ree8 {[%emt 0:00:37]} 26. Ng3 {[%emt 0:01:39]} Qh8 {[%emt 0:00:41]} 27. Qf4 {[%emt 0:08:09]} c5 {[%emt 0:01:33]} 28. Rd3 {[%emt 0:00:25]} Bc8 {[%emt 0:03:26]} 29. Bf6 {[%emt 0:04:54]} c4 {[%emt 0:04:52]} 30. Bxg7 {[%emt 0:01:50]} Qxg7 {[%emt 0:00:04]} 31. Nh5 {[%emt 0:00:31]} g5 {[%emt 0:08:08]} 32. Nxg7 {[%emt 0:04:30]} gxf4 {[%emt 0:00:16]} 33. Nxe8 {[%emt 0:00:06]} cxd3 {[%emt 0:00:16]} 34. Nc7 {[%emt 0:01:00]} Rb8 {[%emt 0:01:09]} 35. Nxd5 {[%emt 0:00:22]} Be6 {[%emt 0:02:22]} 36. Nxf4 {[%emt 0:00:26]} Bxa2 {[%emt 0:00:17]} 37. Nxd3 {[%emt 0:00:28]} Rd8 {[%emt 0:00:28]} 38. Nb4 {[%emt 0:00:13]} Bb3 {[%emt 0:01:40]} 39. Rc3 {[%emt 0:00:58]} 1-0